bitfinex/quotes_ETHUSD_20260225
["timestamp","ask_amount","ask_price","bid_price","bid_amount"]
[1772028067036,1.27019874,1968.2,1967.5,0.001]
[1772028067258,0.002,1967.9,1967.5,0.001]
[1772028070771,0.002,1967.9,1967.6,2.436]
[1772028073065,0.002,1967.9,1967.6,3.70657892]
[1772028073247,0.002,1967.9,1967.6,3.70658332]
[1772028080684,6.502,1967.9,1967.6,2.436]
[1772028086676,0.002,1967.9,1967.6,3.70657981]
[1772028086986,0.002,1968.2,1967.6,3.70657981]
[1772028088907,6.502,1968.2,1967.6,3.70657981]
[1772028089285,6.502,1968.2,1967.8,0.77549581]
[1772028090192,6.5,1968.4,1968.0,0.77549581]
[1772028090397,6.5,1968.6,1968.2,0.77549581]
[1772028091305,6.5,1968.6,1968.3,0.51679288]
[1772028091925,7.77181597,1968.8,1968.4,0.51679288]
[1772028092085,7.77181597,1968.8,1968.2,1.78698899]
[1772028092486,7.77181597,1968.8,1968.2,0.51679288]
[1772028093519,0.002,1968.4,1968.2,0.51679288]
[1772028093828,0.002,1968.4,1968.1,4.22604907]
[1772028094025,0.002,1968.4,1968.2,0.51679288]
[1772028095625,0.002,1968.4,1968.3,0.51679288]
[1772028095827,6.5,1968.7,1968.3,0.51679288]
[1772028096513,6.49745903,1968.7,1968.3,0.51933385]
[1772028096710,6.49745903,1968.7,1968.3,0.51679288]
[1772028097024,6.50072951,1968.8,1968.4,0.00254097]
[1772028097202,7.77054431,1968.8,1968.4,0.51933385]
[1772028097526,7.77054431,1968.8,1968.2,0.51679288]
[1772028097701,7.77054431,1968.8,1968.3,0.00254097]
[1772028098021,7.77054431,1968.8,1968.3,0.51933385]
[1772028099395,7.77054431,1968.8,1968.3,0.00254097]
[1772028101203,7.77054431,1968.8,1968.1,7.52002592]
[1772028101204,7.77054431,1968.8,1968.1,1.27020957]
[1772028101544,7.77054431,1968.8,1968.1,0.00254097]
[1772028101695,7.77054431,1968.8,1968.1,2.43754097]
[1772028101895,7.77054431,1968.8,1967.8,0.00254097]
[1772028102218,7.77054431,1968.8,1967.9,0.00254097]
[1772028102796,7.77054431,1968.8,1967.7,3.70805984]
[1772028103015,7.77054431,1968.8,1967.7,3.70551887]
[1772028103321,7.77054431,1968.8,1967.8,0.00254097]
[1772028105823,7.77054431,1968.8,1968.4,0.001]
[1772028106010,6.49872951,1968.6,1967.8,0.00254097]
[1772028106200,6.49872951,1968.6,1968.3,0.001]
[1772028107330,0.002,1968.7,1968.3,0.00354097]
[1772028107625,7.77065926,1968.7,1968.3,0.001]
[1772028108135,7.77061525,1968.7,1968.3,0.001]
[1772028108331,6.50072951,1968.7,1968.3,0.001]
[1772028109013,6.50072951,1968.7,1968.4,0.00254097]
[1772028109014,0.002,1968.7,1968.4,0.00254097]
[1772028110013,0.002,1968.7,1968.3,3.70007622]
[1772028110538,0.002,1968.7,1968.4,0.00254097]
[1772028110746,0.002,1968.7,1968.5,0.00254097]
[1772028110906,0.002,1968.8,1968.5,0.00254097]
[1772028112346,0.002,1968.8,1968.5,1.27254351]
[1772028114935,0.002,1968.8,1968.6,0.00254097]
[1772028116836,0.002,1968.9,1968.6,0.00254097]
[1772028117034,6.44472951,1969.2,1968.8,2.64048336]
[1772028117235,6.44472951,1969.2,1968.8,5.07448336]
[1772028118860,6.44472951,1969.2,1968.9,1.26974452]
[1772028119065,6.44472951,1969.2,1968.8,6.34424318]
[1772028120170,0.002,1969.3,1968.9,0.05654097]
[1772028120374,0.002,1969.4,1969.0,2.63848336]
[1772028120575,5.98950259,1970.3,1969.3,3.86854097]
[1772028120765,7.25840694,1970.3,1969.7,1.26922881]
[1772028120981,7.25840694,1970.3,1969.8,3.86854097]
[1772028121161,7.25840694,1970.3,1969.5,2.58394239]
[1772028121162,7.25840694,1970.3,1969.5,3.85326107]
[1772028121363,7.25840694,1970.3,1969.6,2.94906072]
[1772028121586,7.25840694,1970.3,1969.7,0.51606072]
[1772028121960,5.98950259,1970.0,1969.4,6.64960169]
[1772028122158,0.51606072,1969.9,1969.2,3.86854097]
[1772028122385,5.98950259,1969.8,1969.1,2.94906072]
[1772028122569,5.98950259,1969.8,1969.2,0.51606072]
[1772028122884,1.26922881,1969.7,1969.3,0.51606072]
[1772028123260,11.06621534,1969.8,1969.3,0.51606072]
[1772028123493,7.2587314,1969.7,1969.3,0.51606072]
[1772028123888,5.98950259,1969.5,1969.0,3.86854097]
[1772028124379,5.98950259,1969.5,1968.9,0.51606072]
[1772028124778,5.98950259,1969.5,1969.0,0.51606072]
[1772028124962,7.25891964,1969.5,1969.0,0.51606072]
[1772028125479,7.25891964,1969.5,1969.1,0.51606072]
[1772028125791,7.25891964,1969.5,1968.9,0.51606072]
[1772028125973,7.25891964,1969.5,1969.0,0.51606072]
[1772028126486,7.25891964,1969.5,1969.1,0.51606072]
[1772028127365,6.50556331,1969.2,1968.7,3.86854097]
[1772028127568,5.98950259,1969.2,1968.6,4.21696543]
[1772028127780,6.50556331,1969.0,1968.6,0.001]
[1772028127975,5.98950259,1968.9,1968.6,0.001]
[1772028128705,5.98950259,1969.2,1968.8,0.51606072]
[1772028128888,2.703,1969.3,1968.9,0.51606072]
[1772028129690,2.703,1969.3,1968.9,1.78579865]
[1772028129870,2.703,1969.3,1968.9,1.78578584]
[1772028130068,3.97248942,1969.3,1968.7,5.65442343]
[1772028130370,5.98950259,1969.2,1968.7,1.78588246]
[1772028130584,5.92950259,1969.2,1968.7,1.78588246]
[1772028130995,5.92950259,1969.2,1968.9,0.51606072]
[1772028131304,5.92950259,1969.2,1968.7,1.26982174]
[1772028132089,5.98950259,1969.4,1968.8,3.92854097]
[1772028132293,5.98950259,1969.4,1968.8,3.92954097]
[1772028132592,0.002,1969.2,1968.8,3.92954097]
[1772028132792,5.98950259,1969.6,1969.0,3.92654097]
[1772028133395,0.002,1969.3,1969.0,3.92654097]
[1772028133894,0.002,1969.5,1969.1,5.19615653]
[1772028134810,5.98950259,1969.8,1969.2,3.92654097]
[1772028135008,7.25866964,1969.8,1969.1,1.26961556]
[1772028135180,5.98950259,1969.7,1969.1,2.431]
[1772028136087,5.98950259,1969.5,1969.1,2.431]
[1772028136286,5.98950259,1969.5,1968.9,3.78]
[1772028136499,5.98950259,1969.5,1968.8,1.27080185]
[1772028136690,5.98950259,1969.5,1968.8,0.001]
[1772028138501,5.98950259,1969.3,1968.8,1.27080507]
[1772028140207,5.98950259,1969.3,1968.8,0.001]
[1772028141131,7.25905367,1969.2,1968.8,0.001]
[1772028141583,5.98950259,1969.2,1968.8,0.001]
[1772028142120,7.2589697,1969.4,1968.8,3.92754097]
[1772028142907,5.98950259,1969.4,1968.8,3.92754097]
[1772028143290,5.98950259,1969.4,1968.9,5.19628549]
[1772028143689,5.07731854,1969.6,1969.0,3.92654097]
[1772028143690,5.98950259,1969.6,1969.0,3.92654097]
[1772028144196,7.25869433,1969.8,1969.0,3.92654097]
[1772028144680,7.25867125,1969.8,1969.0,3.92654097]
[1772028144891,9.96058118,1970.0,1969.2,3.92654097]
[1772028145082,5.98950259,1970.0,1969.4,3.92654097]
[1772028145386,7.25854187,1970.0,1969.5,5.19589867]
[1772028145587,5.98950259,1970.0,1969.5,5.19589867]
[1772028145844,7.28193332,1970.2,1969.6,3.92654097]
[1772028146214,7.28193332,1970.2,1969.3,7.66049958]
[1772028146215,7.28193332,1970.2,1969.3,1.26943522]
[1772028146421,0.002,1969.4,1969.3,1.26943522]
[1772028146733,0.002,1969.5,1969.3,1.26943522]
[1772028147080,6.01297891,1970.1,1969.4,3.92654097]
[1772028147284,6.01297891,1970.1,1969.5,5.19389867]
[1772028147483,6.01297891,1970.1,1969.6,3.92454097]
[1772028148423,7.2819783,1970.1,1969.6,3.92454097]
[1772028149123,6.01297891,1970.1,1969.6,3.92454097]
[1772028149623,6.01297891,1970.1,1969.7,1.26922881]
[1772028149951,6.01297891,1970.1,1969.6,9.00156669]
[1772028149952,7.28195072,1970.1,1969.6,5.19383422]
[1772028152010,7.28195072,1970.1,1969.4,5.19396312]
[1772028152219,6.01297891,1970.1,1969.4,5.19396312]
[1772028153311,6.01297891,1970.1,1969.5,3.92454097]
[1772028153508,6.01297891,1970.1,1969.6,2.431]
[1772028153716,1.26873352,1970.5,1969.7,3.92454097]
[1772028154030,5.07318251,1971.2,1969.7,3.92454097]
[1772028154031,7.59550582,1971.3,1970.1,3.92454097]
[1772028154326,6.32725845,1971.1,1970.2,2.431]
[1772028155532,6.32725845,1971.1,1970.3,3.61227569]
[1772028155714,6.32725845,1971.1,1970.2,2.431]
[1772028156100,6.32725845,1970.9,1970.3,1.2688423]
[1772028157826,6.32725845,1970.9,1970.3,5.19338327]
[1772028159022,0.002,1970.8,1970.4,7.53681666]
[1772028159318,6.32725845,1971.1,1970.3,1.26881308]
[1772028159319,0.002,1970.9,1970.3,1.26881308]
[1772028159520,6.32725845,1970.8,1970.3,1.26881308]
[1772028159721,6.32725845,1970.8,1970.3,4.88108877]
[1772028159931,0.002,1970.9,1970.4,3.92454097]
[1772028160097,0.002,1970.9,1970.5,1.26871352]
[1772028161627,6.32925845,1970.9,1970.3,1.26879019]
[1772028162129,7.59774289,1970.9,1970.3,1.26879019]
[1772028162441,6.32925845,1970.9,1970.3,1.26879019]
[1772028162631,7.59772113,1970.9,1970.3,1.26879019]
[1772028162832,6.32925845,1970.9,1970.3,1.26879019]
[1772028163129,7.59772143,1970.9,1970.3,1.26879019]
[1772028163501,6.32925845,1970.9,1970.3,1.26879019]
[1772028163697,7.59771612,1970.9,1970.3,1.26879019]
[1772028163903,7.5977162,1970.9,1970.3,1.26879019]
[1772028164102,6.32925845,1970.9,1970.3,1.26879019]
[1772028164601,6.32925845,1970.9,1970.3,5.19333116]
[1772028165317,6.32925845,1970.9,1970.4,3.92454097]
[1772028165514,0.002,1970.9,1970.5,3.92454097]
[1772028165929,7.59771934,1970.9,1970.2,1.2688942]
[1772028166234,6.32725845,1970.6,1969.9,2.432]
[1772028166616,6.32725845,1970.6,1969.9,3.70109214]
[1772028167315,6.32725845,1970.6,1969.5,2.432]
[1772028167633,6.32725845,1970.5,1969.5,3.70130479]
[1772028168311,6.32725845,1970.3,1969.5,3.70130479]
[1772028172640,7.43308013,1970.2,1969.5,3.70130479]
[1772028173051,7.43308013,1970.2,1969.6,0.001]
[1772028173549,6.16417343,1970.2,1969.6,0.001]
[1772028173753,6.16417343,1970.2,1969.2,5.19408917]
[1772028173754,6.16417343,1970.1,1969.2,5.19408917]
[1772028174038,6.16417343,1970.1,1969.1,1.26957456]
[1772028174353,6.16417343,1970.1,1969.5,0.001]
[1772028174567,6.16417343,1969.9,1969.5,0.001]
[1772028175046,6.16417343,1969.7,1969.5,0.001]
[1772028175209,6.16417343,1969.7,1969.3,0.001]
[1772028176823,6.07095641,1969.5,1969.3,0.001]
[1772028178544,6.07095641,1969.5,1968.9,0.001]
[1772028179047,6.07095641,1969.3,1968.9,0.001]
[1772028180317,7.74576287,1969.8,1968.9,0.001]
[1772028180318,6.07095641,1969.8,1969.0,3.92554097]
[1772028181269,6.07095641,1970.0,1969.2,3.92554097]
[1772028181484,7.33999313,1970.0,1969.1,1.26961556]
[1772028182723,7.33999313,1970.0,1969.1,5.19515653]
[1772028182925,3.96203672,1970.0,1969.1,5.19515653]
[1772028183121,6.07095641,1969.9,1969.1,5.19515653]
[1772028183427,7.34005639,1969.9,1969.1,5.19515653]
[1772028183861,7.34005639,1969.9,1969.1,1.26961556]
[1772028185353,7.34005639,1969.9,1969.0,9.00400321]
[1772028185728,7.34005639,1969.9,1969.1,3.92554097]
[1772028186846,7.34005639,1969.9,1969.2,0.001]
[1772028187652,7.34005639,1969.9,1969.2,1.27055108]
[1772028187954,6.07095641,1969.9,1969.3,3.92554097]
[1772028188142,2.693,1970.0,1969.3,3.92554097]
[1772028188469,10.03177149,1970.4,1969.5,3.92554097]
[1772028189119,10.03177149,1970.4,1969.4,2.419]
[1772028189120,6.07095641,1970.3,1969.4,2.419]
[1772028189323,6.07095641,1970.3,1969.4,6.34454097]
[1772028190053,3.96081508,1970.4,1969.5,5.19489867]
[1772028190054,6.07095641,1970.2,1969.5,5.19489867]
[1772028190259,6.07095641,1970.2,1969.6,3.92554097]
[1772028192133,6.07095641,1970.0,1969.4,3.68840112]
[1772028192335,6.07095641,1970.0,1969.4,2.419]
[1772028192781,6.07095641,1970.0,1969.3,1.26947651]
[1772028193950,6.07095641,1970.0,1969.2,5.1960637]
[1772028194164,6.07095641,1969.8,1969.2,5.1960637]
[1772028196554,7.34016574,1969.8,1969.2,5.19084834]
[1772028196978,6.07095641,1969.8,1969.2,5.19084834]
[1772028197149,7.34012178,1969.8,1969.3,3.92132561]
[1772028198261,7.34012178,1969.8,1969.2,1.26952273]
[1772028198960,7.34012178,1969.8,1969.0,0.001]
[1772028198961,6.07095641,1969.7,1969.0,0.001]
[1772028199463,6.07095641,1969.7,1969.0,1.27066908]
[1772028199860,6.07095641,1969.7,1969.1,3.92132561]
[1772028200368,6.07095641,1969.7,1969.0,0.001]
[1772028200767,6.07095641,1969.7,1969.0,1.27067658]
[1772028201066,6.07095641,1969.5,1969.0,0.001]
[1772028201247,6.07095641,1969.5,1969.3,0.001]
[1772028203783,7.34036612,1969.5,1969.2,0.001]
[1772028203966,6.07095641,1969.5,1969.2,0.001]
[1772028204766,6.07095641,1969.7,1969.2,0.001]
[1772028205976,6.07095641,1969.7,1969.2,5.19287669]
[1772028207253,6.07095641,1969.7,1969.2,1.27055108]
[1772028208179,6.07095641,1969.7,1969.2,5.19287669]
[1772028208873,5.93620561,1969.8,1969.2,1.27055108]
[1772028209378,5.93620561,1969.8,1969.2,5.19287669]
[1772028210578,5.93620561,1969.8,1969.3,3.92232561]
[1772028210782,0.002,1969.8,1969.3,3.92232561]
[1772028211079,0.002,1970.1,1969.6,3.92232561]
[1772028211247,7.70023727,1970.1,1969.4,3.92232561]
[1772028211446,6.43126245,1970.1,1969.4,3.92232561]
[1772028212062,6.43126245,1970.1,1969.6,3.92232561]
[1772028212497,6.42926245,1970.5,1969.8,3.92232561]
[1772028213179,6.42926245,1970.5,1969.9,2.58037731]
[1772028213384,6.42926245,1970.5,1970.0,3.92232561]
[1772028216603,6.42926245,1970.5,1970.0,5.19129895]
[1772028216793,0.002,1970.4,1970.0,5.19129895]
[1772028218214,0.002,1970.4,1970.1,3.92232561]
[1772028218507,0.002,1970.4,1970.2,1.2689067]
[1772028219101,6.43126245,1970.4,1970.0,3.6859991]
[1772028219810,6.43126245,1970.4,1970.0,2.417]
[1772028220105,6.43126245,1970.4,1970.0,3.68603417]
[1772028221680,6.43126245,1970.4,1970.0,3.68602408]
[1772028221880,7.70005565,1970.4,1970.0,2.417]
[1772028223286,6.43126245,1970.4,1970.0,7.6083469]
[1772028224411,6.43126245,1970.4,1970.0,2.417]
[1772028224412,7.70004851,1970.4,1970.0,2.417]
[1772028225283,6.43126245,1970.4,1970.0,3.68601245]
[1772028225498,0.002,1970.4,1970.1,3.92232561]
[1772028225806,0.002,1970.4,1970.2,1.2689067]
[1772028226383,6.42926245,1970.6,1970.2,1.2689067]
[1772028226384,6.42926245,1970.6,1970.2,5.19123231]
[1772028226579,0.002,1970.7,1970.3,3.92232561]
[1772028226981,6.43126245,1970.7,1970.3,3.92232561]
[1772028228107,6.43126245,1970.7,1970.3,1.26878892]
[1772028230313,7.69984745,1970.7,1970.2,5.19118367]
[1772028230608,0.002,1970.4,1970.2,5.19123114]
[1772028230801,6.43126245,1970.4,1970.1,2.427]
[1772028231311,6.43126245,1970.4,1970.1,3.69596913]
[1772028231489,6.43126245,1970.4,1970.1,7.61829474]
[1772028231909,0.002,1970.4,1970.1,7.61829474]
[1772028232100,6.43126245,1970.6,1970.2,3.92232561]
[1772028232101,0.002,1970.6,1970.2,3.92232561]
[1772028232313,6.43126245,1970.6,1970.2,1.26885725]
[1772028232558,6.43126245,1970.6,1970.1,2.427]
[1772028232815,6.43126245,1970.6,1970.1,0.001]
[1772028233912,6.43126245,1970.6,1970.1,1.26995386]
[1772028234112,6.43126245,1970.6,1970.1,5.19227947]
[1772028234718,6.43126245,1970.6,1970.1,3.92332561]
[1772028234719,7.6999201,1970.6,1970.1,3.92332561]
[1772028234893,7.6999201,1970.6,1970.1,0.001]
[1772028240921,6.17598559,1970.3,1969.8,0.001]
[1772028241144,6.17598559,1970.1,1969.8,0.001]
[1772028243194,7.44502112,1970.0,1969.8,0.001]
[1772028244626,6.17598559,1970.0,1969.8,0.001]
[1772028245213,7.44502112,1970.0,1969.9,0.001]
[1772028245414,6.17598559,1970.0,1969.9,0.001]
[1772028245618,7.44502112,1970.0,1969.9,0.001]
[1772028246019,6.17598559,1970.0,1969.9,0.001]
[1772028246329,7.77874854,1970.2,1969.9,0.001]
[1772028246330,8.87898559,1970.2,1969.9,0.001]
[1772028248003,6.17598559,1970.2,1969.9,0.001]
[1772028248926,7.4447833,1970.4,1969.9,0.001]
[1772028257331,7.4447833,1970.4,1969.9,3.92432561]
[1772028257547,7.4447833,1970.4,1969.9,0.001]
[1772028258714,6.17598559,1970.3,1969.8,0.001]
[1772028259021,6.17598559,1970.1,1969.8,0.001]
[1772028259741,6.17598559,1970.1,1970.0,0.001]
[1772028260241,2.718,1970.2,1969.9,0.001]
[1772028260433,8.89398559,1970.2,1969.9,0.001]
[1772028260938,10.16293439,1970.2,1969.9,0.001]
[1772028261854,6.17598559,1970.1,1969.9,0.001]
[1772028262516,2.718,1970.2,1969.9,0.001]
[1772028262717,7.44683425,1970.3,1969.9,3.92532561]
[1772028263230,6.17798559,1970.3,1969.9,5.1944097]
[1772028263618,7.44682902,1970.3,1969.9,3.92532561]
[1772028264234,7.44682902,1970.3,1969.9,0.001]
[1772028269266,7.44682902,1970.3,1969.9,3.92532561]
[1772028269619,0.002,1970.3,1969.9,3.92532561]
[1772028269946,0.002,1970.3,1970.0,3.92432561]
[1772028270929,1.27084421,1970.3,1970.0,3.92432561]
[1772028271857,0.002,1970.3,1970.0,3.92432561]
[1772028272224,0.002,1970.3,1970.0,1.26901526]
[1772028272456,0.002,1970.4,1970.1,3.92432561]
[1772028274044,0.002,1970.4,1970.2,3.92232561]
[1772028275847,0.002,1970.3,1970.2,3.92232561]
[1772028282767,0.002,1970.3,1970.1,1.26895792]
[1772028282940,0.002,1970.3,1970.1,3.92232561]
[1772028283775,6.27499416,1970.3,1970.0,5.19236114]
[1772028284278,6.27499416,1970.3,1970.0,0.001]
[1772028284788,6.27499416,1970.3,1969.8,0.001]
[1772028284988,6.27299416,1970.1,1969.8,0.001]
[1772028285350,6.27299416,1970.0,1969.6,0.001]
[1772028287070,6.27299416,1969.8,1969.6,0.001]
[1772028289658,7.54216109,1969.8,1969.6,0.001]
[1772028290955,6.27299416,1969.8,1969.6,0.001]
[1772028291358,7.54215913,1969.8,1969.6,0.001]
[1772028292298,7.54215913,1969.8,1969.3,2.417]
[1772028292452,7.54215913,1969.8,1969.4,0.001]
[1772028293360,6.27499416,1970.2,1969.7,3.92332561]
[1772028293684,6.19273684,1970.1,1969.7,3.92332561]
[1772028293894,12.465731,1970.1,1969.5,9.00058464]
[1772028294068,12.465731,1970.1,1969.6,3.92332561]
[1772028294267,6.27299416,1970.1,1969.6,3.92332561]
[1772028294477,6.19273684,1970.1,1969.6,3.92332561]
[1772028295480,7.54390198,1970.2,1969.6,3.92332561]
[1772028295660,6.19273684,1970.1,1969.6,3.92332561]
[1772028297095,6.19273684,1970.1,1969.5,3.92332561]
[1772028297096,6.32090922,1969.9,1969.5,3.92332561]
[1772028297288,6.19273684,1969.8,1969.5,3.92332561]
[1772028300381,7.59182115,1970.2,1969.6,3.92332561]
[1772028301495,0.002,1970.2,1969.6,3.92332561]
[1772028301694,1.27094003,1970.2,1969.7,2.418]
[1772028301897,0.77447871,1970.1,1969.7,2.418]
[1772028302107,0.77447871,1969.9,1969.7,2.418]
[1772028302296,1.26916438,1969.8,1969.5,0.001]
[1772028302476,2.04363141,1969.9,1969.5,0.001]
[1772028302676,0.002,1969.7,1969.5,3.92432561]
[1772028304203,0.002,1970.0,1969.6,3.92132561]
[1772028304703,0.002,1970.0,1969.7,5.19055442]
[1772028305279,0.002,1970.0,1969.8,3.92132561]
[1772028307498,0.002,1970.0,1969.8,5.19045466]
[1772028308584,0.002,1970.0,1969.8,7.61445466]
[1772028309984,6.32290922,1970.2,1969.9,3.92132561]
[1772028309985,0.002,1970.2,1969.9,3.92132561]
[1772028310483,0.002,1970.4,1970.0,4.69580432]
[1772028310673,0.002,1970.4,1970.1,6.34732561]
[1772028311900,0.002,1970.4,1970.1,7.61624097]
[1772028312282,0.002,1970.4,1970.1,6.34732561]
[1772028312702,0.002,1970.4,1970.1,2.426]
[1772028312902,6.32290922,1970.4,1970.1,3.694967]
[1772028314603,6.32290922,1970.4,1970.1,2.426]
[1772028314785,6.32290922,1970.4,1970.1,3.69497058]
[1772028315387,6.32290922,1970.4,1970.1,2.426]
[1772028316900,6.32290922,1970.3,1970.1,2.426]
[1772028321110,3.70790922,1970.3,1970.1,2.426]
[1772028321420,0.002,1970.6,1970.3,5.97446139]
[1772028321629,6.32290922,1970.6,1970.3,5.97446139]
[1772028322976,0.002,1970.6,1970.3,5.97446139]
[1772028323482,6.32090922,1970.9,1970.4,5.97446139]
[1772028323694,7.58936547,1970.9,1970.4,5.97446139]
[1772028324983,7.58936547,1970.9,1970.2,7.24336809]
[1772028325501,6.32090922,1970.7,1970.2,7.24336809]
[1772028326635,6.07895335,1970.9,1970.3,6.37784333]
[1772028327534,6.07895335,1970.9,1970.5,6.37784333]
[1772028329207,7.34741434,1970.9,1970.5,6.37784333]
[1772028329530,6.07895335,1970.9,1970.5,6.37784333]
[1772028329729,6.07895335,1970.9,1970.5,7.64655216]
[1772028329915,6.47678568,1970.8,1970.3,6.37946747]
[1772028330231,6.47878568,1970.6,1970.3,0.001]
[1772028330415,6.47678568,1970.2,1969.9,0.001]
[1772028330906,6.47678568,1970.2,1970.0,0.001]
[1772028332238,7.74575679,1970.1,1969.8,0.001]
[1772028332409,6.47678568,1970.0,1969.8,0.001]
[1772028332637,7.25126439,1970.0,1969.6,0.001]
[1772028333009,6.47678568,1969.7,1969.4,0.001]
[1772028334231,6.47678568,1969.9,1969.4,6.38046747]
[1772028334605,6.47678568,1969.9,1969.4,0.001]
[1772028335738,10.48675895,1970.1,1969.4,6.38046747]
[1772028336105,6.47678568,1970.0,1969.4,6.38046747]
[1772028336597,9.21778568,1970.1,1969.4,7.64983052]
[1772028337117,10.48676019,1970.1,1969.4,7.64983052]
[1772028337941,9.21778568,1970.1,1969.4,7.64983052]
[1772028338123,6.47678568,1970.3,1969.5,6.37946747]
[1772028338503,5.07508751,1970.5,1969.5,6.37946747]
[1772028338504,7.74550276,1970.5,1969.7,6.37946747]
[1772028339741,6.47678568,1970.5,1969.9,6.37946747]
[1772028340039,7.74551423,1970.5,1969.9,6.37946747]
[1772028341306,7.74550683,1970.5,1970.0,1.26903553]
[1772028341520,7.74550683,1970.5,1969.9,6.37946747]
[1772028341946,7.74550683,1970.5,1969.9,7.64855946]
[1772028343260,7.74762303,1970.4,1969.7,8.81246747]
[1772028343459,7.74762303,1970.4,1969.8,1.26915971]
[1772028343827,6.47678568,1970.3,1969.7,7.64865125]
[1772028344022,4.01278143,1970.4,1969.7,7.64865125]
[1772028344254,6.47678568,1970.3,1969.7,7.64865125]
[1772028345256,6.20786651,1970.3,1969.7,7.64865125]
[1772028345973,7.47675945,1970.3,1969.7,7.64865125]
[1772028347535,6.20786651,1970.3,1969.7,7.64865125]
[1772028348064,0.002,1970.4,1969.7,7.64865125]
[1772028348374,0.002,1970.6,1970.1,6.44890974]
[1772028348548,7.74744102,1970.6,1970.1,6.44890974]
[1772028348859,6.47878568,1970.6,1970.1,6.44890974]
[1772028350265,6.47878568,1970.6,1970.2,1.2689067]
[1772028350587,6.47878568,1970.6,1970.2,7.71781644]
[1772028350588,0.002,1970.6,1970.2,7.71781644]
[1772028351445,6.47878568,1970.6,1970.2,7.71781644]
[1772028352081,0.002,1970.6,1970.2,7.60290147]
[1772028355280,0.002,1970.6,1970.3,0.001]
[1772028355790,0.002,1970.9,1970.5,6.36556838]
[1772028356650,6.13020065,1970.9,1970.5,6.36556838]
[1772028357000,6.13020065,1970.8,1970.5,6.36556838]
[1772028357168,6.13020065,1970.8,1970.3,10.0803774]
[1772028357366,6.6439613,1970.7,1970.3,0.001]
[1772028357687,6.12820065,1970.6,1970.3,1.269839]
[1772028358193,6.12820065,1970.6,1970.3,7.63540738]
[1772028359355,6.12820065,1970.6,1970.3,0.001]
[1772028359750,6.12820065,1970.6,1970.3,1.26983568]
[1772028360254,6.12820065,1970.6,1970.3,0.001]
[1772028360499,6.6439613,1970.4,1970.0,1.27002843]
[1772028360654,6.6439613,1970.4,1970.0,1.27000723]
[1772028360860,6.12820065,1970.4,1970.0,1.27000723]
[1772028361088,1.59572828,1970.4,1970.0,1.27000723]
[1772028361250,1.59572828,1970.4,1970.0,7.63557561]
[1772028361792,2.86450752,1970.4,1970.0,0.001]
[1772028363591,2.86450752,1970.4,1969.8,1.2691104]
[1772028363760,2.86450752,1970.4,1969.8,7.63467878]
[1772028364812,1.59572828,1970.4,1969.8,7.63467878]
[1772028365113,2.86450833,1970.4,1969.8,7.63467878]
[1772028365322,2.86451203,1970.4,1969.8,7.63467878]
[1772028365513,1.59572828,1970.4,1969.8,7.63467878]
[1772028365721,2.86452422,1970.4,1969.8,7.63467878]
[1772028366288,2.86452422,1970.4,1969.7,1.26917669]
[1772028366518,2.86452422,1970.4,1969.7,7.63474507]
[1772028366879,1.59572828,1970.4,1969.7,7.63474507]
[1772028367608,6.12820065,1970.6,1969.9,6.36556838]
[1772028367972,0.002,1970.8,1970.0,6.36556838]
[1772028367973,7.39872518,1970.8,1970.0,6.36556838]
[1772028368173,7.39872518,1970.8,1969.8,6.36556838]
[1772028368174,6.12820065,1970.7,1969.8,6.36556838]
[1772028368386,6.12820065,1970.5,1969.9,0.001]
[1772028368917,6.13020065,1970.5,1969.9,0.001]
[1772028369475,6.12820065,1970.3,1969.9,0.001]
[1772028371074,6.12820065,1970.0,1969.6,0.001]
[1772028371702,7.39725171,1970.0,1969.6,0.001]
[1772028371883,7.3972403,1970.0,1969.6,0.001]
[1772028373196,6.12820065,1970.0,1969.6,0.001]
[1772028373400,6.12820065,1970.0,1969.6,6.36656838]
[1772028374601,6.12820065,1970.2,1969.6,7.63581221]
[1772028375589,6.12820065,1970.2,1969.6,6.36656838]
[1772028376104,6.12820065,1970.2,1969.6,0.001]
[1772028376617,6.12820065,1970.0,1969.6,0.001]
[1772028378803,7.3973006,1969.9,1969.6,0.001]
[1772028379178,7.3973006,1969.9,1969.5,0.001]
[1772028381609,6.12820065,1970.7,1969.9,6.36556838]
[1772028381778,7.39678784,1970.7,1969.9,6.36556838]
[1772028381981,6.12820065,1970.4,1969.9,6.36556838]
[1772028382382,6.13020065,1970.6,1969.9,6.36556838]
[1772028382582,7.39885182,1970.6,1969.9,6.36556838]
[1772028382906,6.13020065,1970.6,1969.9,6.36556838]
[1772028384615,0.002,1970.6,1970.1,6.36556838]
[1772028384812,0.002,1970.6,1970.2,6.36556838]
[1772028386513,0.002,1970.6,1970.3,1.2688423]
[1772028386713,0.002,1970.8,1970.6,6.09352299]
[1772028386915,6.11574486,1971.4,1970.6,6.09352299]
[1772028387119,6.11574486,1971.6,1970.7,6.09352299]
[1772028387791,6.11574486,1971.4,1970.7,6.09352299]
[1772028388792,6.11574486,1971.4,1970.8,7.36204338]
[1772028388994,7.38369391,1971.7,1970.8,7.36204338]
[1772028389221,6.11574486,1971.7,1970.8,7.36204338]
[1772028390317,3.6519051,1971.8,1970.8,6.09352299]
[1772028390318,6.41358024,1971.5,1970.8,6.09352299]
[1772028390692,7.68154203,1971.7,1971.0,1.26839167]
[1772028390892,6.41358024,1971.7,1971.0,7.33983198]
[1772028391410,7.68152743,1971.7,1971.0,7.33983198]
[1772028392018,7.68152743,1971.7,1971.0,6.07144031]
[1772028392322,7.68152743,1971.7,1970.9,7.33985302]
[1772028392823,7.68152322,1971.7,1970.9,7.33985302]
[1772028393321,7.6815232,1971.7,1970.9,7.33985302]
[1772028393622,0.002,1971.4,1970.9,7.33985302]
[1772028395227,0.002,1971.7,1971.1,1.26832732]
[1772028395404,0.002,1971.7,1971.2,6.07144031]
[1772028396323,6.41558024,1971.7,1970.8,9.78992719]
[1772028396894,6.41558024,1971.7,1970.9,6.07144031]
[1772028397423,6.41558024,1971.7,1971.1,6.07144031]
[1772028397812,7.68352738,1971.7,1971.1,6.07144031]
[1772028398020,6.41558024,1971.7,1971.1,6.07144031]
[1772028398201,1.26994645,1971.7,1971.1,6.07144031]
[1772028398406,7.68352669,1971.7,1971.1,6.07144031]
[1772028398726,7.68352669,1971.7,1971.0,1.26839167]
[1772028399227,6.41558024,1971.7,1971.0,7.33983198]
[1772028399728,0.002,1971.7,1971.0,7.33983198]